{"text_format":"3","workbook":"xlsx","n_sheets":3,"sheets":["Report budget mensile","Spese mensili","Dati aggiuntivi"],"not_rendered":{"charts":1,"defined_names":4,"pivot_tables":2},"read":"whole","date_system":"1900"}

{"sheet":"Report budget mensile","index":0,"n_rows":34,"n_cols":14,"rows_kept":34,"merged":[[7,1,10,1],[7,5,10,5],[7,6,10,6],[12,1,16,1],[12,5,16,5],[12,6,16,6]]}
[null,"Sintesi budget",{"$nulls":7},"Riepilogo budget"]
[null,"Saldo"]
[null,"Saldo previsto","(Previste meno uscite)",{"$nulls":3},{"$f":"D17-SUM(BudgetDetails[Costo previsto])","v":{"v":1585,"d":"€ 1,585"}}]
[null,"Saldo effettivo ","(Effettivo meno uscite)",{"$nulls":3},{"$f":"D11-SUM(BudgetDetails[Costo effettivo])","v":{"v":1740,"d":"€ 1,740"}}]
[null,"Differenza","(Effettivo meno previsto)",{"$nulls":3},{"$f":"G4-G3","v":{"v":155,"d":"€ 155"}}]
[]
[null,"Entrate",{"$nulls":3},"Uscite",{"$nulls":3},"Fare clic con il pulsante destro del mouse sulla tabella pivot e quindi scegliere Aggiorna per aggiornare"]
[null,"EFFETTIVE","Entrata 1",{"v":5800,"d":"€ 5,800"},null,"EFFETTIVE",{"$f":"SUM(BudgetDetails[Costo effettivo])","v":{"v":7860,"d":"€ 7,860"}}]
[null,null,"Entrata 2",{"v":2300,"d":"€ 2,300"},{"$nulls":6},"Categoria","Costo previsto ","Costo effettivo ","Differenza "]
[null,null,"Entrate extra",{"v":1500,"d":"€ 1,500"},{"$nulls":6},"Abitazione",{"v":140,"d":"€ 140"},{"v":140,"d":"€ 140"},{"v":0,"d":"€ 0"}]
[null,null,"Totale entrate",{"$f":"SUM(D8:D10)","v":{"v":9600,"d":"€ 9,600"}}]
[{"$nulls":10},"Alimentari",{"v":400,"d":"€ 400"},{"v":358,"d":"€ 358"},{"v":42,"d":"€ 42"}]
[null,"PREVISTE",{"$nulls":3},"PREVISTE",{"$f":"SUM(BudgetDetails[Costo previsto])","v":{"v":7915,"d":"€ 7,915"}}]
[null,null,"Entrata 1",{"v":6000,"d":"€ 6,000"},{"$nulls":6},"Animali",{"v":1100,"d":"€ 1,100"},{"v":1320,"d":"€ 1,320"},{"v":-220,"d":"-€ 220"}]
[null,null,"Entrata 2",{"v":1000,"d":"€ 1,000"}]
[null,null,"Entrate extra",{"v":2500,"d":"€ 2,500"},{"$nulls":6},"Assicurazione",{"v":100,"d":"€ 100"},{"v":125,"d":"€ 125"},{"v":-25,"d":"-€ 25"}]
[null,null,"Totale entrate",{"$f":"SUM(D14:D16)","v":{"v":9500,"d":"€ 9,500"}}]
[{"$nulls":10},"Cura della persona",{"v":2830,"d":"€ 2,830"},{"v":2702,"d":"€ 2,702"},{"v":128,"d":"€ 128"}]
[]
[{"$nulls":10},"Figli",{"v":900,"d":"€ 900"},{"v":900,"d":"€ 900"},{"v":0,"d":"€ 0"}]
[]
[{"$nulls":10},"Imposte",{"v":200,"d":"€ 200"},{"v":200,"d":"€ 200"},{"v":0,"d":"€ 0"}]
[]
[{"$nulls":10},"Prestiti",{"v":150,"d":"€ 150"},{"v":140,"d":"€ 140"},{"v":10,"d":"€ 10"}]
[]
[{"$nulls":10},"Regali e beneficenza",{"v":170,"d":"€ 170"},{"v":100,"d":"€ 100"},{"v":70,"d":"€ 70"}]
[]
[{"$nulls":10},"Risparmi o investimenti",{"v":200,"d":"€ 200"},{"v":200,"d":"€ 200"},{"v":0,"d":"€ 0"}]
[]
[{"$nulls":10},"Tempo libero",{"v":300,"d":"€ 300"},{"v":300,"d":"€ 300"},{"v":0,"d":"€ 0"}]
[]
[{"$nulls":10},"Trasporti",{"v":1425,"d":"€ 1,425"},{"v":1375,"d":"€ 1,375"},{"v":50,"d":"€ 50"}]
[]
[{"$nulls":10},"Totale complessivo",{"v":7915,"d":"€ 7,915"},{"v":7860,"d":"€ 7,860"},{"v":55,"d":"€ 55"}]

{"sheet":"Spese mensili","index":1,"n_rows":62,"n_cols":7,"rows_kept":62}
[null,"Spese mensili"]
[null,"Descrizione","Categoria","Costo previsto","Costo effettivo","Differenza","Panoramica costi effettivi"]
[null,"Attività extrascolastiche","Abitazione",{"v":40,"d":"€ 40"},{"v":40,"d":"€ 40"},{"$f":"BudgetDetails[[#This Row],[Costo previsto]]-BudgetDetails[[#This Row],[Costo effettivo]]","v":{"v":0,"d":"€ 0"}},{"$f":"BudgetDetails[[#This Row],[Costo effettivo]]","v":{"v":40,"d":"€ 40"}}]
[null,"Cure mediche","Abitazione",null,null,{"$f":"BudgetDetails[[#This Row],[Costo previsto]]-BudgetDetails[[#This Row],[Costo effettivo]]","v":{"v":0,"d":"€ 0"}},{"$f":"BudgetDetails[[#This Row],[Costo effettivo]]","v":{"v":0,"d":"€ 0"}}]
[null,"Materiale scolastico","Abitazione",null,null,{"$f":"BudgetDetails[[#This Row],[Costo previsto]]-BudgetDetails[[#This Row],[Costo effettivo]]","v":{"v":0,"d":"€ 0"}},{"$f":"BudgetDetails[[#This Row],[Costo effettivo]]","v":{"v":0,"d":"€ 0"}}]
[null,"Retta scolastica","Abitazione",{"v":100,"d":"€ 100"},{"v":100,"d":"€ 100"},{"$f":"BudgetDetails[[#This Row],[Costo previsto]]-BudgetDetails[[#This Row],[Costo effettivo]]","v":{"v":0,"d":"€ 0"}},{"$f":"BudgetDetails[[#This Row],[Costo effettivo]]","v":{"v":100,"d":"€ 100"}}]
[null,"Concerti","Alimentari",{"v":50,"d":"€ 50"},{"v":40,"d":"€ 40"},{"$f":"BudgetDetails[[#This Row],[Costo previsto]]-BudgetDetails[[#This Row],[Costo effettivo]]","v":{"v":10,"d":"€ 10"}},{"$f":"BudgetDetails[[#This Row],[Costo effettivo]]","v":{"v":40,"d":"€ 40"}}]
[null,"Teatro","Alimentari",{"v":200,"d":"€ 200"},{"v":150,"d":"€ 150"},{"$f":"BudgetDetails[[#This Row],[Costo previsto]]-BudgetDetails[[#This Row],[Costo effettivo]]","v":{"v":50,"d":"€ 50"}},{"$f":"BudgetDetails[[#This Row],[Costo effettivo]]","v":{"v":150,"d":"€ 150"}}]
[null,"Cinema","Alimentari",{"v":50,"d":"€ 50"},{"v":28,"d":"€ 28"},{"$f":"BudgetDetails[[#This Row],[Costo previsto]]-BudgetDetails[[#This Row],[Costo effettivo]]","v":{"v":22,"d":"€ 22"}},{"$f":"BudgetDetails[[#This Row],[Costo effettivo]]","v":{"v":28,"d":"€ 28"}}]
[null,"Musica (CD, download e così via).","Alimentari",{"v":50,"d":"€ 50"},{"v":30,"d":"€ 30"},{"$f":"BudgetDetails[[#This Row],[Costo previsto]]-BudgetDetails[[#This Row],[Costo effettivo]]","v":{"v":20,"d":"€ 20"}},{"$f":"BudgetDetails[[#This Row],[Costo effettivo]]","v":{"v":30,"d":"€ 30"}}]
[null,"Eventi sportivi","Alimentari",{"v":0,"d":"€ 0"},{"v":40,"d":"€ 40"},{"$f":"BudgetDetails[[#This Row],[Costo previsto]]-BudgetDetails[[#This Row],[Costo effettivo]]","v":{"v":-40,"d":"-€ 40"}},{"$f":"BudgetDetails[[#This Row],[Costo effettivo]]","v":{"v":40,"d":"€ 40"}}]
[null,"Video/DVD (acquisto)","Alimentari",{"v":20,"d":"€ 20"},{"v":50,"d":"€ 50"},{"$f":"BudgetDetails[[#This Row],[Costo previsto]]-BudgetDetails[[#This Row],[Costo effettivo]]","v":{"v":-30,"d":"-€ 30"}},{"$f":"BudgetDetails[[#This Row],[Costo effettivo]]","v":{"v":50,"d":"€ 50"}}]
[null,"Video/DVD (noleggio)","Alimentari",{"v":30,"d":"€ 30"},{"v":20,"d":"€ 20"},{"$f":"BudgetDetails[[#This Row],[Costo previsto]]-BudgetDetails[[#This Row],[Costo effettivo]]","v":{"v":10,"d":"€ 10"}},{"$f":"BudgetDetails[[#This Row],[Costo effettivo]]","v":{"v":20,"d":"€ 20"}}]
[null,"Cene fuori","Animali",{"v":1000,"d":"€ 1,000"},{"v":1200,"d":"€ 1,200"},{"$f":"BudgetDetails[[#This Row],[Costo previsto]]-BudgetDetails[[#This Row],[Costo effettivo]]","v":{"v":-200,"d":"-€ 200"}},{"$f":"BudgetDetails[[#This Row],[Costo effettivo]]","v":{"v":1200,"d":"€ 1,200"}}]
[null,"Generi alimentari","Animali",{"v":100,"d":"€ 100"},{"v":120,"d":"€ 120"},{"$f":"BudgetDetails[[#This Row],[Costo previsto]]-BudgetDetails[[#This Row],[Costo effettivo]]","v":{"v":-20,"d":"-€ 20"}},{"$f":"BudgetDetails[[#This Row],[Costo effettivo]]","v":{"v":120,"d":"€ 120"}}]
[null,"Beneficenza 1","Assicurazione",{"v":75,"d":"€ 75"},{"v":100,"d":"€ 100"},{"$f":"BudgetDetails[[#This Row],[Costo previsto]]-BudgetDetails[[#This Row],[Costo effettivo]]","v":{"v":-25,"d":"-€ 25"}},{"$f":"BudgetDetails[[#This Row],[Costo effettivo]]","v":{"v":100,"d":"€ 100"}}]
[null,"Beneficenza 2","Assicurazione",{"v":25,"d":"€ 25"},{"v":25,"d":"€ 25"},{"$f":"BudgetDetails[[#This Row],[Costo previsto]]-BudgetDetails[[#This Row],[Costo effettivo]]","v":{"v":0,"d":"€ 0"}},{"$f":"BudgetDetails[[#This Row],[Costo effettivo]]","v":{"v":25,"d":"€ 25"}}]
[null,"Regalo 1","Assicurazione",null,null,{"$f":"BudgetDetails[[#This Row],[Costo previsto]]-BudgetDetails[[#This Row],[Costo effettivo]]","v":{"v":0,"d":"€ 0"}},{"$f":"BudgetDetails[[#This Row],[Costo effettivo]]","v":{"v":0,"d":"€ 0"}}]
[null,"Regalo 2","Assicurazione",null,null,{"$f":"BudgetDetails[[#This Row],[Costo previsto]]-BudgetDetails[[#This Row],[Costo effettivo]]","v":{"v":0,"d":"€ 0"}},{"$f":"BudgetDetails[[#This Row],[Costo effettivo]]","v":{"v":0,"d":"€ 0"}}]
[null,"TV via cavo/satellitare","Cura della persona",{"v":100,"d":"€ 100"},{"v":100,"d":"€ 100"},{"$f":"BudgetDetails[[#This Row],[Costo previsto]]-BudgetDetails[[#This Row],[Costo effettivo]]","v":{"v":0,"d":"€ 0"}},{"$f":"BudgetDetails[[#This Row],[Costo effettivo]]","v":{"v":100,"d":"€ 100"}}]
[null,"Elettricità","Cura della persona",{"v":45,"d":"€ 45"},{"v":50,"d":"€ 50"},{"$f":"BudgetDetails[[#This Row],[Costo previsto]]-BudgetDetails[[#This Row],[Costo effettivo]]","v":{"v":-5,"d":"-€ 5"}},{"$f":"BudgetDetails[[#This Row],[Costo effettivo]]","v":{"v":50,"d":"€ 50"}}]
[null,"Gas","Cura della persona",{"v":300,"d":"€ 300"},{"v":400,"d":"€ 400"},{"$f":"BudgetDetails[[#This Row],[Costo previsto]]-BudgetDetails[[#This Row],[Costo effettivo]]","v":{"v":-100,"d":"-€ 100"}},{"$f":"BudgetDetails[[#This Row],[Costo effettivo]]","v":{"v":400,"d":"€ 400"}}]
[null,"Servizio di pulizia della casa","Cura della persona",{"v":200,"d":"€ 200"},null,{"$f":"BudgetDetails[[#This Row],[Costo previsto]]-BudgetDetails[[#This Row],[Costo effettivo]]","v":{"v":200,"d":"€ 200"}},{"$f":"BudgetDetails[[#This Row],[Costo effettivo]]","v":{"v":0,"d":"€ 0"}}]
[null,"Manutenzione","Cura della persona",{"v":200,"d":"€ 200"},{"v":150,"d":"€ 150"},{"$f":"BudgetDetails[[#This Row],[Costo previsto]]-BudgetDetails[[#This Row],[Costo effettivo]]","v":{"v":50,"d":"€ 50"}},{"$f":"BudgetDetails[[#This Row],[Costo effettivo]]","v":{"v":150,"d":"€ 150"}}]
[null,"Mutuo o affitto","Cura della persona",{"v":1700,"d":"€ 1,700"},{"v":1700,"d":"€ 1,700"},{"$f":"BudgetDetails[[#This Row],[Costo previsto]]-BudgetDetails[[#This Row],[Costo effettivo]]","v":{"v":0,"d":"€ 0"}},{"$f":"BudgetDetails[[#This Row],[Costo effettivo]]","v":{"v":1700,"d":"€ 1,700"}}]
[null,"Riscaldamento","Cura della persona",null,null,{"$f":"BudgetDetails[[#This Row],[Costo previsto]]-BudgetDetails[[#This Row],[Costo effettivo]]","v":{"v":0,"d":"€ 0"}},{"$f":"BudgetDetails[[#This Row],[Costo effettivo]]","v":{"v":0,"d":"€ 0"}}]
[null,"Servizio online/Internet","Cura della persona",{"v":100,"d":"€ 100"},{"v":100,"d":"€ 100"},{"$f":"BudgetDetails[[#This Row],[Costo previsto]]-BudgetDetails[[#This Row],[Costo effettivo]]","v":{"v":0,"d":"€ 0"}},{"$f":"BudgetDetails[[#This Row],[Costo effettivo]]","v":{"v":100,"d":"€ 100"}}]
[null,"Telefono (cellulare)","Cura della persona",{"v":60,"d":"€ 60"},{"v":60,"d":"€ 60"},{"$f":"BudgetDetails[[#This Row],[Costo previsto]]-BudgetDetails[[#This Row],[Costo effettivo]]","v":{"v":0,"d":"€ 0"}},{"$f":"BudgetDetails[[#This Row],[Costo effettivo]]","v":{"v":60,"d":"€ 60"}}]
[null,"Telefono (abitazione)","Cura della persona",{"v":35,"d":"€ 35"},{"v":39,"d":"€ 39"},{"$f":"BudgetDetails[[#This Row],[Costo previsto]]-BudgetDetails[[#This Row],[Costo effettivo]]","v":{"v":-4,"d":"-€ 4"}},{"$f":"BudgetDetails[[#This Row],[Costo effettivo]]","v":{"v":39,"d":"€ 39"}}]
[null,"Materiali","Cura della persona",{"v":40,"d":"€ 40"},{"v":55,"d":"€ 55"},{"$f":"BudgetDetails[[#This Row],[Costo previsto]]-BudgetDetails[[#This Row],[Costo effettivo]]","v":{"v":-15,"d":"-€ 15"}},{"$f":"BudgetDetails[[#This Row],[Costo effettivo]]","v":{"v":55,"d":"€ 55"}}]
[null,"Rimozione rifiuti","Cura della persona",{"v":25,"d":"€ 25"},{"v":22,"d":"€ 22"},{"$f":"BudgetDetails[[#This Row],[Costo previsto]]-BudgetDetails[[#This Row],[Costo effettivo]]","v":{"v":3,"d":"€ 3"}},{"$f":"BudgetDetails[[#This Row],[Costo effettivo]]","v":{"v":22,"d":"€ 22"}}]
[null,"Acqua","Cura della persona",{"v":25,"d":"€ 25"},{"v":26,"d":"€ 26"},{"$f":"BudgetDetails[[#This Row],[Costo previsto]]-BudgetDetails[[#This Row],[Costo effettivo]]","v":{"v":-1,"d":"-€ 1"}},{"$f":"BudgetDetails[[#This Row],[Costo effettivo]]","v":{"v":26,"d":"€ 26"}}]
[null,"Salute","Figli",{"v":400,"d":"€ 400"},{"v":400,"d":"€ 400"},{"$f":"BudgetDetails[[#This Row],[Costo previsto]]-BudgetDetails[[#This Row],[Costo effettivo]]","v":{"v":0,"d":"€ 0"}},{"$f":"BudgetDetails[[#This Row],[Costo effettivo]]","v":{"v":400,"d":"€ 400"}}]
[null,"Casa","Figli",{"v":400,"d":"€ 400"},{"v":400,"d":"€ 400"},{"$f":"BudgetDetails[[#This Row],[Costo previsto]]-BudgetDetails[[#This Row],[Costo effettivo]]","v":{"v":0,"d":"€ 0"}},{"$f":"BudgetDetails[[#This Row],[Costo effettivo]]","v":{"v":400,"d":"€ 400"}}]
[null,"Vita","Figli",{"v":100,"d":"€ 100"},{"v":100,"d":"€ 100"},{"$f":"BudgetDetails[[#This Row],[Costo previsto]]-BudgetDetails[[#This Row],[Costo effettivo]]","v":{"v":0,"d":"€ 0"}},{"$f":"BudgetDetails[[#This Row],[Costo effettivo]]","v":{"v":100,"d":"€ 100"}}]
[null,"Carta di credito 1","Imposte",{"v":200,"d":"€ 200"},{"v":200,"d":"€ 200"},{"$f":"BudgetDetails[[#This Row],[Costo previsto]]-BudgetDetails[[#This Row],[Costo effettivo]]","v":{"v":0,"d":"€ 0"}},{"$f":"BudgetDetails[[#This Row],[Costo effettivo]]","v":{"v":200,"d":"€ 200"}}]
[null,"Carta di credito 2","Imposte",null,null,{"$f":"BudgetDetails[[#This Row],[Costo previsto]]-BudgetDetails[[#This Row],[Costo effettivo]]","v":{"v":0,"d":"€ 0"}},{"$f":"BudgetDetails[[#This Row],[Costo effettivo]]","v":{"v":0,"d":"€ 0"}}]
[null,"Carta di credito 3","Imposte",null,null,{"$f":"BudgetDetails[[#This Row],[Costo previsto]]-BudgetDetails[[#This Row],[Costo effettivo]]","v":{"v":0,"d":"€ 0"}},{"$f":"BudgetDetails[[#This Row],[Costo effettivo]]","v":{"v":0,"d":"€ 0"}}]
[null,"Personale","Imposte",null,null,{"$f":"BudgetDetails[[#This Row],[Costo previsto]]-BudgetDetails[[#This Row],[Costo effettivo]]","v":{"v":0,"d":"€ 0"}},{"$f":"BudgetDetails[[#This Row],[Costo effettivo]]","v":{"v":0,"d":"€ 0"}}]
[null,"Studente","Imposte",null,null,{"$f":"BudgetDetails[[#This Row],[Costo previsto]]-BudgetDetails[[#This Row],[Costo effettivo]]","v":{"v":0,"d":"€ 0"}},{"$f":"BudgetDetails[[#This Row],[Costo effettivo]]","v":{"v":0,"d":"€ 0"}}]
[null,"Abbigliamento","Prestiti",{"v":150,"d":"€ 150"},{"v":140,"d":"€ 140"},{"$f":"BudgetDetails[[#This Row],[Costo previsto]]-BudgetDetails[[#This Row],[Costo effettivo]]","v":{"v":10,"d":"€ 10"}},{"$f":"BudgetDetails[[#This Row],[Costo effettivo]]","v":{"v":140,"d":"€ 140"}}]
[null,"Lavanderia","Prestiti",null,null,{"$f":"BudgetDetails[[#This Row],[Costo previsto]]-BudgetDetails[[#This Row],[Costo effettivo]]","v":{"v":0,"d":"€ 0"}},{"$f":"BudgetDetails[[#This Row],[Costo effettivo]]","v":{"v":0,"d":"€ 0"}}]
[null,"Parrucchiere/manicure","Prestiti",null,null,{"$f":"BudgetDetails[[#This Row],[Costo previsto]]-BudgetDetails[[#This Row],[Costo effettivo]]","v":{"v":0,"d":"€ 0"}},{"$f":"BudgetDetails[[#This Row],[Costo effettivo]]","v":{"v":0,"d":"€ 0"}}]
[null,"Palestra","Prestiti",null,null,{"$f":"BudgetDetails[[#This Row],[Costo previsto]]-BudgetDetails[[#This Row],[Costo effettivo]]","v":{"v":0,"d":"€ 0"}},{"$f":"BudgetDetails[[#This Row],[Costo effettivo]]","v":{"v":0,"d":"€ 0"}}]
[null,"Cure mediche","Prestiti",null,null,{"$f":"BudgetDetails[[#This Row],[Costo previsto]]-BudgetDetails[[#This Row],[Costo effettivo]]","v":{"v":0,"d":"€ 0"}},{"$f":"BudgetDetails[[#This Row],[Costo effettivo]]","v":{"v":0,"d":"€ 0"}}]
[null,"Alimentari","Regali e beneficenza",{"v":150,"d":"€ 150"},{"v":75,"d":"€ 75"},{"$f":"BudgetDetails[[#This Row],[Costo previsto]]-BudgetDetails[[#This Row],[Costo effettivo]]","v":{"v":75,"d":"€ 75"}},{"$f":"BudgetDetails[[#This Row],[Costo effettivo]]","v":{"v":75,"d":"€ 75"}}]
[null,"Toelettatura","Regali e beneficenza",{"v":20,"d":"€ 20"},{"v":25,"d":"€ 25"},{"$f":"BudgetDetails[[#This Row],[Costo previsto]]-BudgetDetails[[#This Row],[Costo effettivo]]","v":{"v":-5,"d":"-€ 5"}},{"$f":"BudgetDetails[[#This Row],[Costo effettivo]]","v":{"v":25,"d":"€ 25"}}]
[null,"Veterinario","Regali e beneficenza",null,null,{"$f":"BudgetDetails[[#This Row],[Costo previsto]]-BudgetDetails[[#This Row],[Costo effettivo]]","v":{"v":0,"d":"€ 0"}},{"$f":"BudgetDetails[[#This Row],[Costo effettivo]]","v":{"v":0,"d":"€ 0"}}]
[null,"Giocattoli","Regali e beneficenza",null,null,{"$f":"BudgetDetails[[#This Row],[Costo previsto]]-BudgetDetails[[#This Row],[Costo effettivo]]","v":{"v":0,"d":"€ 0"}},{"$f":"BudgetDetails[[#This Row],[Costo effettivo]]","v":{"v":0,"d":"€ 0"}}]
[null,"Conto investimento","Risparmi o investimenti",{"v":200,"d":"€ 200"},{"v":200,"d":"€ 200"},{"$f":"BudgetDetails[[#This Row],[Costo previsto]]-BudgetDetails[[#This Row],[Costo effettivo]]","v":{"v":0,"d":"€ 0"}},{"$f":"BudgetDetails[[#This Row],[Costo effettivo]]","v":{"v":200,"d":"€ 200"}}]
[null,"Fondo pensione","Risparmi o investimenti",null,null,{"$f":"BudgetDetails[[#This Row],[Costo previsto]]-BudgetDetails[[#This Row],[Costo effettivo]]","v":{"v":0,"d":"€ 0"}},{"$f":"BudgetDetails[[#This Row],[Costo effettivo]]","v":{"v":0,"d":"€ 0"}}]
[null,"Nazionali","Tempo libero",{"v":300,"d":"€ 300"},{"v":300,"d":"€ 300"},{"$f":"BudgetDetails[[#This Row],[Costo previsto]]-BudgetDetails[[#This Row],[Costo effettivo]]","v":{"v":0,"d":"€ 0"}},{"$f":"BudgetDetails[[#This Row],[Costo effettivo]]","v":{"v":300,"d":"€ 300"}}]
[null,"Locali","Tempo libero",null,null,{"$f":"BudgetDetails[[#This Row],[Costo previsto]]-BudgetDetails[[#This Row],[Costo effettivo]]","v":{"v":0,"d":"€ 0"}},{"$f":"BudgetDetails[[#This Row],[Costo effettivo]]","v":{"v":0,"d":"€ 0"}}]
[null,"Regionali","Tempo libero",null,null,{"$f":"BudgetDetails[[#This Row],[Costo previsto]]-BudgetDetails[[#This Row],[Costo effettivo]]","v":{"v":0,"d":"€ 0"}},{"$f":"BudgetDetails[[#This Row],[Costo effettivo]]","v":{"v":0,"d":"€ 0"}}]
[null,"Bus/taxi","Trasporti",{"v":100,"d":"€ 100"},{"v":150,"d":"€ 150"},{"$f":"BudgetDetails[[#This Row],[Costo previsto]]-BudgetDetails[[#This Row],[Costo effettivo]]","v":{"v":-50,"d":"-€ 50"}},{"$f":"BudgetDetails[[#This Row],[Costo effettivo]]","v":{"v":150,"d":"€ 150"}}]
[null,"Carburante","Trasporti",{"v":450,"d":"€ 450"},{"v":400,"d":"€ 400"},{"$f":"BudgetDetails[[#This Row],[Costo previsto]]-BudgetDetails[[#This Row],[Costo effettivo]]","v":{"v":50,"d":"€ 50"}},{"$f":"BudgetDetails[[#This Row],[Costo effettivo]]","v":{"v":400,"d":"€ 400"}}]
[null,"Assicurazione","Trasporti",{"v":300,"d":"€ 300"},{"v":300,"d":"€ 300"},{"$f":"BudgetDetails[[#This Row],[Costo previsto]]-BudgetDetails[[#This Row],[Costo effettivo]]","v":{"v":0,"d":"€ 0"}},{"$f":"BudgetDetails[[#This Row],[Costo effettivo]]","v":{"v":300,"d":"€ 300"}}]
[null,"Bollo ","Trasporti",{"v":25,"d":"€ 25"},{"v":25,"d":"€ 25"},{"$f":"BudgetDetails[[#This Row],[Costo previsto]]-BudgetDetails[[#This Row],[Costo effettivo]]","v":{"v":0,"d":"€ 0"}},{"$f":"BudgetDetails[[#This Row],[Costo effettivo]]","v":{"v":25,"d":"€ 25"}}]
[null,"Manutenzione","Trasporti",{"v":100,"d":"€ 100"},{"v":50,"d":"€ 50"},{"$f":"BudgetDetails[[#This Row],[Costo previsto]]-BudgetDetails[[#This Row],[Costo effettivo]]","v":{"v":50,"d":"€ 50"}},{"$f":"BudgetDetails[[#This Row],[Costo effettivo]]","v":{"v":50,"d":"€ 50"}}]
[null,"Parcheggio","Trasporti",null,null,{"$f":"BudgetDetails[[#This Row],[Costo previsto]]-BudgetDetails[[#This Row],[Costo effettivo]]","v":{"v":0,"d":"€ 0"}},{"$f":"BudgetDetails[[#This Row],[Costo effettivo]]","v":{"v":0,"d":"€ 0"}}]
[null,"Rata veicolo","Trasporti",{"v":450,"d":"€ 450"},{"v":450,"d":"€ 450"},{"$f":"BudgetDetails[[#This Row],[Costo previsto]]-BudgetDetails[[#This Row],[Costo effettivo]]","v":{"v":0,"d":"€ 0"}},{"$f":"BudgetDetails[[#This Row],[Costo effettivo]]","v":{"v":450,"d":"€ 450"}}]
[null,"Totale",null,{"$f":"SUBTOTAL(109,BudgetDetails[Costo previsto])","v":{"v":7915,"d":"€ 7,915"}},{"$f":"SUBTOTAL(109,BudgetDetails[Costo effettivo])","v":{"v":7860,"d":"€ 7,860"}},{"$f":"SUBTOTAL(109,BudgetDetails[Differenza])","v":{"v":55,"d":"€ 55"}}]

{"sheet":"Dati aggiuntivi","index":2,"n_rows":15,"n_cols":5,"rows_kept":15}
[null,"Tabella pivot per il grafico Sintesi budget",null,null,"Elenco di ricerca per le categorie di budget"]
[null,"Categoria","Costo ",null,"Ricerca categoria di budget"]
[null,"Abitazione",140,null,"Abitazione"]
[null,"Alimentari",358,null,"Alimentari"]
[null,"Animali",1320,null,"Animali"]
[null,"Assicurazione",125,null,"Assicurazione"]
[null,"Cura della persona",2702,null,"Cura della persona"]
[null,"Figli",900,null,"Figli"]
[null,"Imposte",200,null,"Imposte"]
[null,"Prestiti",140,null,"Prestiti"]
[null,"Regali e beneficenza",100,null,"Regali e beneficenza"]
[null,"Risparmi o investimenti",200,null,"Risparmi o investimenti"]
[null,"Tempo libero",300,null,"Tempo libero"]
[null,"Trasporti",1375,null,"Trasporti"]
[null,"Totale complessivo",7860]